fUSD/lending_fUSD_20250911
["ID","MTS","AMOUNT","RATE_DAILY","PERIOD"]
[384961524,1757634649023,-400.0,0.00027397,7]
[384961525,1757634649033,-400.0,0.00027397,7]
[384961526,1757634649048,-400.0,0.00027397,7]
[384961527,1757634649057,-730.97,0.00027397,7]
[384961528,1757634649068,-1022.35,0.00027397,7]
[384961529,1757634649077,-400.0,0.00027397,7]
[384961530,1757634649086,-400.0,0.00027397,7]
[384961531,1757634649096,-400.0,0.00027397,7]
[384961532,1757634649106,-400.0,0.00027397,7]
[384961533,1757634649115,-400.0,0.00027397,7]
[384961534,1757634649125,-817.28,0.00027397,7]
[384961535,1757634649135,-400.0,0.00027397,7]
[384961536,1757634649144,-462.11,0.00027397,7]
[384961537,1757634649154,-400.0,0.00027397,7]
[384961538,1757634649163,-400.0,0.00027397,7]
[384961539,1757634649173,-400.95326437,0.00027397,7]
[384961540,1757634649183,-400.0,0.00027397,7]
[384961541,1757634649192,-151.0,0.00027397,7]
[384961542,1757634649202,-400.0,0.00027397,7]
[384961543,1757634649211,-452.37,0.00027397,7]
[384961544,1757634649220,-871.42,0.00027397,7]
[384961545,1757634649230,-400.0,0.00027397,7]
[384961546,1757634649239,-401.57388355,0.00027397,7]
[384961547,1757634649248,-561.48,0.00027397,7]
[384961548,1757634649257,-400.0,0.00027397,7]
[384961549,1757634649266,-400.0,0.00027397,7]
[384961550,1757634649275,-400.0,0.00027397,7]
[384961551,1757634649288,-998.49,0.00027397,7]
[384961552,1757634649297,-151.0,0.00027397,7]
[384961553,1757634649306,-400.0,0.00027397,7]
[384961554,1757634649315,-151.0,0.00027397,7]
[384961555,1757634649325,-400.0,0.00027397,7]
[384961556,1757634649335,-400.0,0.00027397,7]
[384961557,1757634649344,-400.0,0.00027397,7]
[384961558,1757634649353,-432.3,0.00027397,7]
[384961559,1757634649364,-400.0,0.00027397,7]
[384961560,1757634649374,-400.0,0.00027397,7]
[384961561,1757634649383,-1019.55,0.00027397,7]
[384961562,1757634649393,-400.0,0.00027397,7]
[384961563,1757634649402,-400.0,0.00027397,7]
[384961564,1757634649411,-400.0,0.00027397,7]
[384961565,1757634649420,-400.0,0.00027397,7]
[384961566,1757634649429,-401.75235603,0.00027397,7]
[384961567,1757634649439,-863.69,0.00027397,7]
[384961568,1757634649448,-400.0,0.00027397,7]
[384961569,1757634649458,-400.0,0.00027397,7]
[384961570,1757634649467,-400.0,0.00027397,7]
[384961571,1757634649477,-400.0,0.00027397,7]
[384961572,1757634649486,-500.0,0.00027397,7]
[384961573,1757634649495,-956.25,0.00027397,7]
[384961574,1757634649504,-500.0,0.00027397,7]
[384961575,1757634649513,-471.26,0.00027397,7]
[384961576,1757634649523,-500.0,0.00027397,7]
[384961577,1757634649532,-400.0,0.00027397,7]
[384961578,1757634649541,-400.0,0.00027397,7]
[384961579,1757634649551,-1422.61,0.00027397,7]
[384961580,1757634649560,-400.0,0.00027397,7]
[384961581,1757634649570,-1234.81,0.00027397,7]
[384961582,1757634649579,-387.99651523,0.00027397,7]
[384961583,1757634649588,-400.0,0.00027397,7]
[384961584,1757634649598,-400.41736756,0.00027397,7]
[384961585,1757634649607,-716.12,0.00027397,7]
[384961586,1757634649616,-400.0,0.00027397,7]
[384961587,1757634649626,-741.01,0.00027397,7]
[384961588,1757634649635,-400.0,0.00027397,7]
[384961589,1757634649645,-400.0,0.00027397,7]
[384961590,1757634649654,-152.391769,0.00027397,7]
[384961591,1757634649663,-400.0,0.00027397,7]
[384961592,1757634649673,-400.0,0.00027397,7]
[384961593,1757634649682,-400.0,0.00027397,7]
[384961594,1757634649691,-1548.27,0.00027397,7]
[384961595,1757634649700,-400.0,0.00027397,7]
[384961596,1757634649709,-621.13,0.00027397,7]
[384961597,1757634649719,-400.0,0.00027397,7]
[384961598,1757634649729,-400.0,0.00027397,7]
[384961599,1757634649738,-400.0,0.00027397,7]
[384961600,1757634649747,-400.0,0.00027397,7]
[384961601,1757634649757,-814.53,0.00027397,7]
[384961602,1757634649766,-400.0,0.00027397,7]
[384961603,1757634649775,-400.0,0.00027397,7]
[384961604,1757634649784,-896.92,0.00027397,7]
[384961605,1757634649794,-400.96901044,0.00027397,7]
[384961606,1757634649803,-400.0,0.00027397,7]
[384961607,1757634649812,-803.24,0.00027397,7]
[384961608,1757634649822,-533.42,0.00027397,7]
[384961609,1757634649831,-392.03840298,0.00027397,7]
[384961610,1757634649840,-400.0,0.00027397,7]
[384961611,1757634649850,-400.0,0.00027397,7]
[384961612,1757634649859,-1030.93,0.00027397,7]
[384961613,1757634649868,-579.91,0.00027397,7]
[384961614,1757634649878,-506.99,0.00027397,7]
[384961615,1757634649887,-151.0,0.00027397,7]
[384961616,1757634649896,-400.0,0.00027397,7]
[384961617,1757634649905,-400.0,0.00027397,7]
[384961618,1757634649915,-153.405548,0.00027397,7]
[384961619,1757634649923,-400.0,0.00027397,7]
[384961620,1757634649933,-400.0,0.00027397,7]
[384961621,1757634649942,-432.77,0.00027397,7]
[384961622,1757634649951,-153.253893,0.00027397,7]
[384961623,1757634649960,-856.59,0.00027397,7]
[384961624,1757634649969,-400.0,0.00027397,7]
[384961625,1757634649978,-400.0,0.00027397,7]
[384961626,1757634649987,-633.39,0.00027397,7]
[384961627,1757634649995,-400.0,0.00027397,7]
[384961628,1757634650005,-400.0,0.00027397,7]
[384961629,1757634650014,-630.52,0.00027397,7]
[384961630,1757634650023,-400.0,0.00027397,7]
[384961631,1757634650032,-400.0,0.00027397,7]
[384961632,1757634650041,-151.0,0.00027397,7]
[384961633,1757634650050,-400.0,0.00027397,7]
[384961634,1757634650059,-151.0,0.00027397,7]
[384961635,1757634650068,-1799.32,0.00027397,7]
[384961636,1757634650078,-400.0,0.00027397,7]
[384961637,1757634650087,-400.0,0.00027397,7]
[384961638,1757634650096,-300.0,0.00027397,7]
[384961639,1757634650106,-400.0,0.00027397,7]
[384961640,1757634650115,-1043.44,0.00027397,7]
[384961641,1757634650125,-450.58,0.00027397,7]
[384961642,1757634650134,-400.0,0.00027397,7]
[384961643,1757634650143,-400.0,0.00027397,7]
[384961644,1757634650152,-400.0,0.00027397,7]
[384961645,1757634650161,-400.0,0.00027397,7]
[384961646,1757634650170,-1179.97,0.00027397,7]
[384961647,1757634650179,-400.99742253,0.00027397,7]
[384961648,1757634650188,-151.0,0.00027397,7]
[384961649,1757634650197,-400.0,0.00027397,7]
[384961650,1757634650206,-716.21,0.00027397,7]
[384961652,1757634650215,-400.0,0.00027397,7]
[384961653,1757634650224,-400.0,0.00027397,7]
[384961654,1757634650234,-400.0,0.00027397,7]
[384961655,1757634650243,-400.817119,0.00027397,7]
[384961656,1757634650252,-151.0,0.00027397,7]
[384961657,1757634650262,-743.2,0.00027397,7]
[384961658,1757634650271,-400.0,0.00027397,7]
[384961659,1757634650281,-1185.25,0.00027397,7]
[384961660,1757634650293,-151.0,0.00027397,7]
[384961662,1757634650303,-400.0,0.00027397,7]
[384961663,1757634650311,-400.0,0.00027397,7]
[384961664,1757634650321,-445.7,0.00027397,7]
[384961665,1757634650330,-400.0,0.00027397,7]
[384961666,1757634650339,-1138.04,0.00027397,7]
[384961667,1757634650348,-400.0,0.00027397,7]
[384961668,1757634650357,-653.86,0.00027397,7]
[384961669,1757634650369,-400.0,0.00027397,7]
[384961670,1757634650378,-400.0,0.00027397,7]
[384961671,1757634650387,-400.0,0.00027397,7]
[384961672,1757634650396,-400.0,0.00027397,7]
[384961673,1757634650405,-400.0,0.00027397,7]
[384961674,1757634650415,-400.0,0.00027397,7]
[384961675,1757634650426,-400.0,0.00027397,7]
[384961676,1757634650435,-151.0,0.00027397,7]
[384961677,1757634650444,-400.0,0.00027397,7]
[384961678,1757634650453,-400.0,0.00027397,7]
[384961679,1757634650463,-400.0,0.00027397,7]
[384961680,1757634650472,-401.03297827,0.00027397,7]
[384961681,1757634650481,-400.0,0.00027397,7]
[384961682,1757634650490,-400.0,0.00027397,7]
[384961683,1757634650499,-403.24873012,0.00027397,7]
[384961684,1757634650509,-400.0,0.00027397,7]
[384961685,1757634650518,-400.0,0.00027397,7]
[384961686,1757634650527,-604.82,0.00027397,7]
[384961687,1757634650536,-555.12,0.00027397,7]
[384961688,1757634650545,-882.31,0.00027397,7]
[384961689,1757634650554,-542.03,0.00027397,7]
[384961690,1757634650563,-793.36,0.00027397,7]
[384961691,1757634650572,-400.0,0.00027397,7]
[384961692,1757634650582,-400.0,0.00027397,7]
[384961693,1757634650592,-400.0,0.00027397,7]
[384961694,1757634650602,-400.0,0.00027397,7]
[384961695,1757634650612,-400.0,0.00027397,7]
[384961696,1757634650624,-151.0,0.00027397,7]
[384961697,1757634650634,-400.0,0.00027397,7]
[384961698,1757634650644,-400.0,0.00027397,7]
[384961699,1757634650653,-400.0,0.00027397,7]
[384961700,1757634650662,-400.0,0.00027397,7]
[384961701,1757634650671,-245.426427,0.00027397,7]
[384961702,1757634650680,-400.0,0.00027397,7]
[384961703,1757634650689,-400.0,0.00027397,7]
[384961704,1757634650698,-400.0,0.00027397,7]
[384961705,1757634650707,-400.0,0.00027397,7]
[384961706,1757634650716,-400.0,0.00027397,7]
[384961707,1757634650725,-400.0,0.00027397,7]
[384961708,1757634650734,-400.0,0.00027397,7]
[384961709,1757634650743,-1033.3,0.00027397,7]
[384961710,1757634650752,-483.88,0.00027397,7]
[384961711,1757634650762,-400.0,0.00027397,7]
[384961712,1757634650771,-400.0,0.00027397,7]
[384961713,1757634650780,-400.0,0.00027397,7]
[384961714,1757634650790,-467.52,0.00027397,7]
[384961715,1757634650800,-400.0,0.00027397,7]
[384961716,1757634650936,-400.0,0.00027397,7]
[384961717,1757634650946,-400.0,0.00027397,7]
[384961718,1757634650955,-400.0,0.00027397,7]
[384961719,1757634650965,-728.9,0.00027397,7]
[384961720,1757634650974,-400.0,0.00027397,7]
[384961721,1757634650983,-831.18,0.00027397,7]
[384961722,1757634650993,-413.47512416,0.00027397,7]
[384961723,1757634651002,-505.84,0.00027397,7]
[384961724,1757634651011,-784.57,0.00027397,7]
[384961725,1757634651020,-400.0,0.00027397,7]
[384961726,1757634651030,-400.0,0.00027397,7]
[384961727,1757634651039,-400.0,0.00027397,7]
[384961728,1757634651049,-582.51,0.00027397,7]
[384961729,1757634651058,-735.36,0.00027397,7]
[384961730,1757634651068,-400.0,0.00027397,7]
[384961731,1757634651077,-400.0,0.00027397,7]
[384961732,1757634651086,-1376.56,0.00027397,7]
[384961733,1757634651095,-151.0,0.00027397,7]
[384961734,1757634651104,-151.0,0.00027397,7]
[384961735,1757634651113,-400.0,0.00027397,7]
[384961736,1757634651123,-400.0,0.00027397,7]
[384961737,1757634651132,-566.99,0.00027397,7]
[384961738,1757634651140,-400.0,0.00027397,7]
[384961739,1757634651150,-685.42,0.00027397,7]
[384961740,1757634651159,-400.0,0.00027397,7]
[384961741,1757634651168,-400.0,0.00027397,7]
[384961742,1757634651178,-400.0,0.00027397,7]
[384961743,1757634651187,-400.0,0.00027397,7]
[384961744,1757634651196,-1653.06,0.00027397,7]
[384961745,1757634651205,-400.0,0.00027397,7]
[384961746,1757634651214,-300.0,0.00027397,7]
[384961747,1757634651223,-500.0,0.00027397,7]
[384961748,1757634651233,-500.0,0.00027397,7]
[384961749,1757634651242,-400.0,0.00027397,7]
[384961750,1757634651252,-388.76401516,0.00027397,7]
[384961751,1757634651261,-1207.75,0.00027397,7]
[384961752,1757634651270,-400.0,0.00027397,7]
[384961753,1757634651280,-400.0,0.00027397,7]
[384961754,1757634651294,-802.42,0.00027397,7]
[384961755,1757634651303,-400.0,0.00027397,7]
[384961756,1757634651312,-400.0,0.00027397,7]
[384961757,1757634651321,-400.0,0.00027397,7]
[384961758,1757634651331,-400.0,0.00027397,7]
[384961759,1757634651340,-400.0,0.00027397,7]
[384961760,1757634651349,-400.0,0.00027397,7]
[384961761,1757634651359,-434.23,0.00027397,7]
[384961762,1757634651368,-400.0,0.00027397,7]
[384961763,1757634651377,-151.0,0.00027397,7]
[384961764,1757634651386,-400.0,0.00027397,7]
[384961765,1757634651395,-400.0,0.00027397,7]
[384961766,1757634651405,-171.553611,0.00027397,7]
[384961767,1757634651414,-400.0,0.00027397,7]
[384961768,1757634651423,-400.0,0.00027397,7]
[384961769,1757634651432,-400.0,0.00027397,7]
[384961770,1757634651442,-400.0,0.00027397,7]
[384961771,1757634651451,-400.0,0.00027397,7]
[384961772,1757634651460,-457.91,0.00027397,7]
[384961773,1757634651469,-151.0,0.00027397,7]
[384961774,1757634651478,-171.553611,0.00027397,7]
[384961775,1757634651487,-725.42,0.00027397,7]
[384961776,1757634651496,-400.0,0.00027397,7]
[384961777,1757634651506,-400.0,0.00027397,7]
[384961778,1757634651514,-400.0,0.00027397,7]
[384961779,1757634651523,-171.553611,0.00027397,7]
[384961780,1757634651532,-400.0,0.00027397,7]
[384961781,1757634651542,-404.86341918,0.00027397,7]
[384961782,1757634651551,-180.55825,0.00027397,7]
[384961783,1757634651560,-1380.4,0.00027397,7]
[384961784,1757634651570,-438.0,0.00027397,7]
[384961785,1757634651579,-1022.55,0.00027397,7]
[384961786,1757634651589,-400.0,0.00027397,7]
[384961787,1757634651598,-171.553611,0.00027397,7]
[384961788,1757634651607,-400.0,0.00027397,7]
[384961789,1757634651616,-400.0,0.00027397,7]
[384961790,1757634651626,-400.0,0.00027397,7]
[384961791,1757634651635,-400.0,0.00027397,7]
[384961792,1757634651644,-400.0,0.00027397,7]
[384961793,1757634651653,-400.0,0.00027397,7]
[384961794,1757634651662,-400.0,0.00027397,7]
[384961795,1757634651672,-836.55,0.00027397,7]
[384961796,1757634651681,-400.0,0.00027397,7]
[384961797,1757634651690,-400.0,0.00027397,7]
[384961798,1757634651699,-399.81117483,0.00027397,7]
[384961799,1757634651708,-400.0,0.00027397,7]
[384961800,1757634651717,-445.68,0.00027397,7]
[384961801,1757634651726,-400.0,0.00027397,7]
[384961802,1757634651735,-151.0,0.00027397,7]
[384961803,1757634651744,-656.56,0.00027397,7]
[384961804,1757634651754,-400.0,0.00027397,7]
[384961805,1757634651763,-400.0,0.00027397,7]
[384961806,1757634651772,-400.0,0.00027397,7]
[384961807,1757634651781,-151.0,0.00027397,7]
[384961808,1757634651790,-154.839177,0.00027397,7]
[384961809,1757634651799,-400.0,0.00027397,7]
[384961810,1757634651808,-400.0,0.00027397,7]
[384961811,1757634651817,-400.0,0.00027397,7]
[384961812,1757634651827,-400.0,0.00027397,7]
[384961813,1757634651836,-400.0,0.00027397,7]
[384961814,1757634651845,-400.0,0.00027397,7]
[384961815,1757634651857,-730.18,0.00027397,7]
[384961816,1757634651866,-400.0,0.00027397,7]
[384961817,1757634651875,-400.0,0.00027397,7]
[384961818,1757634651884,-400.0,0.00027397,7]
[384961819,1757634651893,-400.0,0.00027397,7]
[384961820,1757634651903,-400.0,0.00027397,7]
[384961821,1757634651912,-151.0,0.00027397,7]
[384961822,1757634651921,-400.0,0.00027397,7]
[384961823,1757634651931,-400.0,0.00027397,7]
[384961824,1757634651940,-400.0,0.00027397,7]
[384961825,1757634651949,-804.98,0.00027397,7]
[384961826,1757634651958,-151.0,0.00027397,7]
[384961827,1757634651967,-151.0,0.00027397,7]
[384961828,1757634651976,-151.0,0.00027397,7]
[384961829,1757634651985,-400.0,0.00027397,7]
[384961830,1757634651996,-400.0,0.00027397,7]
[384961831,1757634652005,-668.83,0.00027397,7]
[384961832,1757634652014,-804.65,0.00027397,7]
[384961833,1757634652023,-500.0,0.00027397,7]
[384961834,1757634652032,-500.0,0.00027397,7]
[384961835,1757634652041,-400.0,0.00027397,7]
[384961836,1757634652051,-200.0,0.00027397,7]
[384961837,1757634652060,-400.0,0.00027397,7]
[384961838,1757634652069,-400.0,0.00027397,7]
[384961839,1757634652078,-400.0,0.00027397,7]
[384961840,1757634652088,-853.23,0.00027397,7]
[384961841,1757634652097,-400.0,0.00027397,7]
[384961842,1757634652108,-1830.18,0.00027397,7]
[384961843,1757634652118,-400.0,0.00027397,7]
[384961844,1757634652127,-1362.04,0.00027397,7]
[384961845,1757634652137,-152.224182,0.00027397,7]
[384961846,1757634652148,-690.45,0.00027397,7]
[384961847,1757634652157,-400.0,0.00027397,7]
[384961848,1757634652167,-591.06,0.00027397,7]
[384961849,1757634652176,-151.0,0.00027397,7]
[384961850,1757634652186,-965.76,0.00027397,2]
[384961851,1757634652195,-430.68,0.00027397,7]
[384961852,1757634652204,-151.0,0.00027397,7]
[384961853,1757634652214,-151.0,0.00027397,7]
[384961854,1757634652223,-400.0,0.00027397,7]
[384961855,1757634652233,-400.0,0.00027397,7]
[384961856,1757634652242,-787.77,0.00027397,7]
[384961857,1757634652251,-151.0,0.00027397,7]
[384961858,1757634652261,-500.0,0.00027397,7]
[384961859,1757634652270,-500.0,0.00027397,7]
[384961860,1757634652279,-500.0,0.00027397,7]
[384961861,1757634652291,-400.0,0.00027397,7]
[384961862,1757634652300,-151.0,0.00027397,7]
[384961863,1757634652309,-500.0,0.00027397,7]
[384961864,1757634652319,-151.0,0.00027397,7]
[384961865,1757634652328,-400.0,0.00027397,7]
[384961866,1757634652338,-400.0,0.00027397,7]
[384961867,1757634652347,-477.06,0.00027397,7]
[384961868,1757634652357,-1377.98,0.00027397,7]
[384961869,1757634652368,-151.0,0.00027397,7]
[384961870,1757634652378,-151.0,0.00027397,7]
[384961871,1757634652387,-833.52,0.00027397,7]
[384961872,1757634652397,-400.0,0.00027397,7]
[384961873,1757634652406,-400.0,0.00027397,7]
[384961874,1757634652415,-400.0,0.00027397,7]
[384961875,1757634652425,-151.0,0.00027397,7]
[384961876,1757634652434,-1532.87,0.00027397,7]
[384961877,1757634652443,-245.823367,0.00027397,7]
[384961878,1757634652453,-151.0,0.00027397,7]
[384961879,1757634652462,-400.0,0.00027397,7]
[384961880,1757634652471,-1802.09,0.00027397,7]
[384961881,1757634652481,-400.0,0.00027397,7]
[384961882,1757634652490,-400.0,0.00027397,7]
[384961883,1757634652499,-400.0,0.00027397,7]
[384961884,1757634652508,-404.0,0.00027397,7]
[384961885,1757634652518,-544.71,0.00027397,7]
[384961886,1757634652527,-247.998972,0.00027397,7]
[384961887,1757634652536,-400.0,0.00027397,7]
[384961888,1757634652545,-400.0,0.00027397,2]
[384961889,1757634652554,-400.0,0.00027397,7]
[384961890,1757634652564,-400.0,0.00027397,7]
[384961891,1757634652573,-500.0,0.00027397,7]
[384961892,1757634652583,-551.433028,0.00027397,7]
[384961893,1757634652592,-500.0,0.00027397,7]
[384961894,1757634652601,-500.0,0.00027397,7]
[384961895,1757634652611,-500.0,0.00027397,7]
[384961896,1757634652621,-400.0,0.00027397,7]
[384961897,1757634652630,-926.87,0.00027397,7]
[384961898,1757634652640,-551.433028,0.00027397,7]
[384961899,1757634652651,-274.905525,0.00027397,7]
[384961901,1757634652660,-624.26,0.00027397,7]
[384961902,1757634652669,-400.0,0.00027397,7]
[384961903,1757634652678,-400.0,0.00027397,7]
[384961904,1757634652687,-400.0,0.00027397,7]
[384961905,1757634652697,-400.0,0.00027397,7]
[384961906,1757634652706,-551.433028,0.00027397,7]
[384961907,1757634652715,-274.905525,0.00027397,7]
[384961908,1757634652724,-560.16,0.00027397,7]
[384961909,1757634652733,-571.09,0.00027397,7]
[384961910,1757634652742,-400.0,0.00027397,7]
[384961911,1757634652752,-274.905525,0.00027397,7]
[384961912,1757634652761,-551.433028,0.00027397,7]
[384961913,1757634652770,-151.0,0.00027397,7]
[384961914,1757634652780,-791.48,0.00027397,7]
[384961915,1757634652789,-400.0,0.00027397,7]
[384961916,1757634652799,-400.0,0.00027397,7]
[384961917,1757634652808,-1431.29,0.00027397,7]
[384961918,1757634652817,-400.0,0.00027397,7]
[384961919,1757634652827,-400.0,0.00027397,7]
[384961921,1757634652836,-274.905525,0.00027397,7]
[384961922,1757634652845,-431.58,0.00027397,7]
[384961923,1757634652855,-400.0,0.00027397,7]
[384961924,1757634652864,-400.0,0.00027397,7]
[384961925,1757634652874,-318.18550186,0.00027397,7]
[384961926,1757634652883,-151.0,0.00027397,5]
[384961927,1757634652892,-400.0,0.00027397,7]
[384961928,1757634652903,-447.64,0.00027397,7]
[384961929,1757634652912,-400.0,0.00027397,7]
[384961930,1757634652922,-400.0,0.00027397,7]
[384961931,1757634652931,-151.0,0.00027397,7]
[384961932,1757634652940,-151.0,0.00027397,7]
[384961933,1757634652950,-400.0,0.00027397,7]
[384961934,1757634652959,-400.0,0.00027397,7]
[384961935,1757634652968,-400.0,0.00027397,7]
[384961936,1757634652977,-500.0,0.00027397,7]
[384961937,1757634652987,-1200.45,0.00027397,7]
[384961938,1757634652996,-500.0,0.00027397,7]
[384961939,1757634653005,-500.0,0.00027397,7]
[384961940,1757634653015,-525.25,0.00027397,7]
[384961941,1757634653339,-400.0,0.00027397,7]
[384961942,1757634653348,-400.0,0.00027397,7]
[384961943,1757634653358,-400.0,0.00027397,7]
[384961944,1757634653368,-400.0,0.00027397,7]
[384961945,1757634653377,-400.14,0.00027397,7]
[384961946,1757634653386,-400.0,0.00027397,7]
[384961947,1757634653396,-400.0,0.00027397,7]
[384961948,1757634653405,-878.57,0.00027397,7]
[384961949,1757634653415,-400.0,0.00027397,7]
[384961950,1757634653424,-422.87,0.00027397,7]
[384961951,1757634653434,-400.0,0.00027397,7]
[384961952,1757634653443,-500.0,0.00027397,7]
[384961953,1757634653455,-500.0,0.00027397,7]
[384961954,1757634653465,-400.0,0.00027397,7]
[384961955,1757634653475,-400.0,0.00027397,7]
[384961956,1757634653485,-778.91,0.00027397,7]
[384961957,1757634653494,-1692.49,0.00027397,7]
[384961958,1757634653503,-400.0,0.00027397,7]
[384961959,1757634653513,-400.0,0.00027397,7]
[384961960,1757634653523,-1492.25,0.00027397,7]
[384961961,1757634653532,-810.76,0.00027397,7]
[384961962,1757634653542,-400.0,0.00027397,7]
[384961963,1757634653551,-2904.6,0.00027397,7]
[384961964,1757634653561,-160.0,0.00027397,14]
[384961965,1757634653570,-400.0,0.00027397,7]
[384961966,1757634653580,-160.0,0.00027397,14]
[384961967,1757634653589,-160.0,0.00027397,14]
[384961968,1757634653599,-400.0,0.00027397,7]
[384961969,1757634653608,-160.0,0.00027397,14]
[384961970,1757634653618,-414.52,0.00027397,7]
[384961971,1757634653627,-160.0,0.00027397,14]
[384961972,1757634653636,-160.0,0.00027397,14]
[384961973,1757634653646,-400.0,0.00027397,7]
[384961974,1757634653655,-160.0,0.00027397,14]
[384961975,1757634653665,-160.0,0.00027397,14]
[384961976,1757634653675,-622.23,0.00027397,7]
[384961977,1757634653684,-400.0,0.00027397,7]
[384961978,1757634653694,-400.0,0.00027397,7]
[384961979,1757634653703,-1001.94,0.00027397,7]
[384961980,1757634653713,-242.31885167,0.00027397,7]
[384961981,1757634653722,-400.0,0.00027397,7]
[384961982,1757634653732,-151.0,0.00027397,7]
[384961983,1757634653741,-400.0,0.00027397,7]
[384961984,1757634653751,-400.0,0.00027397,7]
[384961985,1757634653760,-400.0,0.00027397,7]
[384961986,1757634653769,-400.0,0.00027397,7]
[384961987,1757634653779,-400.0,0.00027397,7]
[384961988,1757634653788,-400.0,0.00027397,7]
[384961989,1757634653797,-152.247616,0.00027397,7]
[384961990,1757634653807,-611.06,0.00027397,7]
[384961991,1757634653817,-1117.46,0.00027397,7]
[384961992,1757634653827,-400.0,0.00027397,7]
[384961993,1757634653837,-400.0,0.00027397,7]
[384961994,1757634653847,-401.12546123,0.00027397,7]
[384961995,1757634653856,-400.0,0.00027397,7]
[384961996,1757634653866,-400.0,0.00027397,7]
[384961997,1757634653876,-400.0,0.00027397,7]
[384961998,1757634653886,-1096.4,0.00027397,7]
[384961999,1757634653895,-400.0,0.00027397,7]
[384962000,1757634653906,-400.0,0.00027397,7]
[384962001,1757634653916,-400.0,0.00027397,7]
[384962002,1757634653926,-403.19579855,0.00027397,7]
[384962003,1757634653936,-400.0,0.00027397,7]
[384962004,1757634653946,-400.0,0.00027397,7]
[384962005,1757634653956,-1089.15,0.00027397,7]
[384962006,1757634653966,-401.14790462,0.00027397,7]
[384962007,1757634653976,-401.52546348,0.00027397,7]
[384962008,1757634653986,-738.47,0.00027397,7]
[384962009,1757634653996,-400.0,0.00027397,7]
[384962010,1757634654006,-400.0,0.00027397,7]
[384962011,1757634654015,-549.33,0.00027397,7]
[384962012,1757634654024,-404.74819357,0.00027397,7]
[384962013,1757634654034,-400.0,0.00027397,7]
[384962014,1757634654043,-400.0,0.00027397,7]
[384962015,1757634654053,-400.0,0.00027397,7]
[384962016,1757634654063,-400.0,0.00027397,7]
[384962017,1757634654073,-400.0,0.00027397,7]
[384962018,1757634654082,-660.41,0.00027397,7]
[384962019,1757634654092,-776.68,0.00027397,7]
[384962020,1757634654103,-401.3939453,0.00027397,7]
[384962021,1757634654112,-400.0,0.00027397,7]
[384962022,1757634654122,-400.0,0.00027397,7]
[384962023,1757634654131,-400.0,0.00027397,7]
[384962024,1757634654141,-400.0,0.00027397,7]
[384962025,1757634654151,-1476.09,0.00027397,7]
[384962026,1757634654161,-400.0,0.00027397,7]
[384962027,1757634654170,-400.0,0.00027397,7]